Cogmind - Beta 9.6 @@@ ROGUE MODE // 2020.08.13 @ 18:53:40 Player: josiah Result: Destroyed by P-70 Sage with Tesla Rifle Performance ------------- Evolutions (4) 2000 Regions Visited (10) 2000 Robots Destroyed (105) 525 Value Destroyed (4300) 4300 Prototype IDs (14) 280 Alien Tech Used (0) 0 Bonus (416) 416 TOTAL SCORE: 9521 Bonus ------- High Alert Combat Kills 79 Follower Combat Kills 37 Met Data Miner 300 Cogmind --------- Core Integrity 0/850 Matter 300/300 Energy 99/100 System Corruption 5% Temperature Cool (0) Movement Core (50) Location -5/Proximity Caves Parts ------- > --- POWER (1) -------- (None) > --- PROPULSION (2) --- (None) > --- UTILITY (9) ------ Advanced Targeting Computer > --- WEAPON (3) ------- (None) > --- INVENTORY (4) ---- Improved Energy Well (600) Enhanced Optical Array Advanced Sensor Array Advanced Targeting Computer Peak State ------------ > --- POWER ------------ Light Angular Momentum Engine > --- PROPULSION ------- Armored Treads Advanced Treads > --- UTILITY ---------- Advanced Heat Sink Improved Cooling System Large Storage Unit Large Storage Unit Improved Energy Well Long-range Sensor Array Advanced Signal Interpreter Advanced Terrain Scanner Advanced Targeting Computer > --- WEAPON ----------- Makeshift Shrapnel Gun Coil Gun Gauss Cannon > --- INVENTORY -------- Light Nuclear Core Light Angular Momentum Engine Armored Treads Medium Treads Improved Heat Sink Advanced Heat Sink Compact Matter Pod Compact Matter Pod Enhanced Optical Array Advanced Sensor Array Advanced Targeting Computer Advanced Targeting Computer Layered Medium Armor Plating Battle Rifle Battle Rifle Heavy Machine Gun [Rating: 60] Favorites ----------- Power Improved Ion Engine Engine Improved Ion Engine Power Core Light Nuclear Core Propulsion Advanced Treads Treads Advanced Treads Utility Large Storage Unit Device Advanced Heat Sink Storage Large Storage Unit Processor Advanced Targeting Computer Protection Hardened Medium Armor Plating Weapon Improved Light Cannon Energy Gun EM Pulse Gun Ballistic Gun Flak Gun Ballistic Cannon Improved Light Cannon Build | -11 -10 -9 -8 -8 -7 -6 -6 -6 -6 -5 ------- Run | Scr Mat Mat Mat Sto Fac Fac Low Low Dat Pro Slots Evolved 8 | . . 2 2 . 2 2 . . . . Power . | . . . . . . . . . . . Propulsion . | . . . . . . . . . . . Utility 7 | . . 1 2 . 2 2 . . . . Weapon 1 | . . 1 . . . . . . . . Parts Attached 104 | 6 5 8 14 8 8 37 7 . . 11 Power 15 | 1 1 1 3 1 2 4 . . . 2 Engine 12 | 1 1 1 3 1 1 3 . . . 1 Core 3 | . . . . . 1 1 . . . 1 Reactor . | . . . . . . . . . . . Propulsion 14 | 2 . 2 2 2 3 1 1 . . 1 Treads 14 | 2 . 2 2 2 3 1 1 . . 1 Leg . | . . . . . . . . . . . Wheel . | . . . . . . . . . . . Hover . | . . . . . . . . . . . Flight . | . . . . . . . . . . . Utility 49 | 1 2 4 5 1 3 26 3 . . 4 Device 17 | . . . . . 2 13 2 . . . Storage 5 | 1 1 1 . . . 1 . . . 1 Processor 7 | . 1 2 1 . . 2 . . . 1 Hackware . | . . . . . . . . . . . Protection 20 | . . 1 4 1 1 10 1 . . 2 Artifact . | . . . . . . . . . . . Weapon 26 | 2 2 1 4 4 . 6 3 . . 4 Energy Gun 2 | 1 . . . . . 1 . . . . Energy Cannon . | . . . . . . . . . . . Ballistic Gun 14 | 1 . . . 2 . 5 2 . . 4 Ballistic Cannon 10 | . 2 1 4 2 . . 1 . . . Launcher . | . . . . . . . . . . . Special Weapon . | . . . . . . . . . . . Impact Weapon . | . . . . . . . . . . . Slashing Weapon . | . . . . . . . . . . . Piercing Weapon . | . . . . . . . . . . . Special Melee Weapon . | . . . . . . . . . . . Unidentified Prototypes 3 | . . . . 2 . . . . . 1 Parts Lost 38 | . . . 2 5 . 8 4 . . 19 Power 6 | . . . 1 . . 2 . . . 3 Propulsion 5 | . . . . 2 . 1 . . . 2 Utility 12 | . . . . 1 . 2 1 . . 8 Weapon 15 | . . . 1 2 . 3 3 . . 6 Highest Loss Streak 17 | . . . 2 2 . 3 2 . . 17 Average Slot Usage (%) 96 | . 92 100 98 97 91 97 99 100 100 94 Engine 7 | . 14 11 8 9 6 5 6 6 6 5 Treads 15 | . 28 22 17 17 15 12 13 13 13 12 Device 15 | . . . . . 3 21 26 26 26 24 Storage 13 | . 14 11 18 18 15 13 13 13 13 12 Processor 14 | . 7 20 18 18 15 12 13 13 13 12 Protection 6 | . . . 9 8 10 9 5 6 6 5 Ballistic Gun 12 | . 5 . . 10 15 17 17 13 13 12 Ballistic Cannon 8 | . 17 33 26 14 7 . 1 6 6 5 Naked Turns . | . . . . . . . . . . . Heaviest Build 76 | 13 29 51 59 62 69 76 69 69 69 71 Greatest Support 50 | 40 40 40 40 44 50 50 50 50 50 42 Greatest Overweight (x) 3 | . . 1 2 2 1 2 1 1 1 3 Average Overweight (x) . | . . . 1 1 1 1 1 1 1 . Largest Inventory Capacity 16 | 6 10 16 16 16 16 16 16 16 16 16 Average Capacity 14 | 5 7 10 16 16 16 16 16 16 16 15 Most Carried 16 | 3 8 16 16 16 16 16 16 16 16 16 Average Carried 14 | 1 5 10 15 13 15 15 15 16 16 15 Final Capacity 16 | 6 10 16 16 16 16 16 16 16 16 4 Final Carried 16 | 3 8 16 16 12 16 16 16 16 16 4 Class Distribution -------------------- 37% | Skirmisher 31% | Gunner 16% | Mutant 9% | Scavenger-Skirmisher 4% | Scavenger-Gunner Dominant Class ---------------- Mutant | -10/Materials Gunner | -9/Materials Gunner | -8/Materials Gunner | -8/Storage Gunner | -7/Factory Scavenger-Skirmisher | -6/Factory Skirmisher | -6/Lower Caves Skirmisher | -6/Lower Caves Skirmisher | -6/Data Miner Skirmisher | -5/Proximity Caves Resources | -11 -10 -9 -8 -8 -7 -6 -6 -6 -6 -5 ----------- Run | Scr Mat Mat Mat Sto Fac Fac Low Low Dat Pro Matter Collected 4179 | 157 250 266 574 525 601 761 518 63 . 464 Remotely . | . . . . . . . . . . . Salvage Created 4223 | . 314 331 494 727 430 904 595 35 . 393 Parts 201 | . 21 12 20 36 14 55 25 4 . 14 Haulers Intercepted . | . . . . . . . . . . . Recyclers Shooed 3 | . . . 2 1 . . . . . . Parts Field Recycled . | . . . . . . . . . . . Retrieved Matter . | . . . . . . . . . . . Parts Self-Destructed 35 | . . . . . . . 13 4 . 18 Prevented . | . . . . . . . . . . . Kills | -11 -10 -9 -8 -8 -7 -6 -6 -6 -6 -5 ------- Run | Scr Mat Mat Mat Sto Fac Fac Low Low Dat Pro Combat Hostiles Destroyed 96 | . 10 10 11 17 11 15 10 1 . 11 Guns 47 | . 4 . . 4 5 15 9 1 . 9 Cannons 49 | . 6 10 11 13 6 . 1 . . 2 Classes Destroyed 11 | . 3 2 1 1 2 2 . . . . Worker 1 | . . . . . . 1 . . . . Builder 1 | . . . . 1 . . . . . . Recycler 5 | . 1 . 3 . . 1 . . . . Watcher 2 | . . . . . . 2 . . . . Swarmer 19 | . 6 . . . . 6 . . . 7 Grunt 35 | . 4 6 4 6 4 3 5 . . 3 Brawler 3 | . . . . . 1 . 1 . . 1 Duelist 3 | . . 2 1 . . . . . . . Sentry 21 | . . 2 5 8 3 3 . . . . Hunter 5 | . . . 1 3 1 . . . . . Programmer 6 | . . . . . 2 3 . 1 . . Thug 4 | . . . . . . . 4 . . . Best Kill Streak 5 | . 3 2 4 5 3 4 3 1 . 4 Combat Bots Only 5 | . 3 2 4 5 3 4 3 1 . 4 Max Kills in Single Turn 2 | . 1 1 1 1 1 2 2 1 . 1 Gunslinging 1 | . . . . . . 1 1 . . . Exploded . | . . . . . . . . . . . Melee . | . . . . . . . . . . . Uniques/NPCs Destroyed . | . . . . . . . . . . . Combat | -11 -10 -9 -8 -8 -7 -6 -6 -6 -6 -5 -------- Run | Scr Mat Mat Mat Sto Fac Fac Low Low Dat Pro Damage Taken 8384 | . 235 219 1013 889 677 1502 1147 . . 2702 Core 1200 | . 40 . 83 131 84 129 208 . . 525 Absorbed by Shields . | . . . . . . . . . . . Core Remaining (%) 86 | 100 84 100 . 61 88 . . . . . Volleys Fired 292 | . 20 19 32 34 31 54 61 1 . 40 Largest 3 | . 2 3 3 3 3 3 3 3 . 3 Hottest 117 | . 78 117 117 108 94 113 106 106 . 106 Shots Fired 686 | . 40 57 85 88 93 125 114 3 . 81 Gun 373 | . 22 . . 32 62 124 76 2 . 55 Cannon 313 | . 18 57 85 56 31 1 38 1 . 26 Launcher . | . . . . . . . . . . . Special . | . . . . . . . . . . . Kinetic 668 | . 29 57 85 88 93 118 114 3 . 81 Thermal 7 | . . . . . . 7 . . . . Explosive . | . . . . . . . . . . . Electromagnetic 11 | . 11 . . . . . . . . . Robot Hit Streak 34 | . 8 16 32 34 13 25 14 3 . 6 Robot Miss Streak 5 | . 3 1 1 3 3 3 3 5 . 5 Penetration Max 2 | . . . . . . 1 1 . . 2 Secondary Targets 4 | . . . . . . 2 2 . . . Max Gunslinging Chain 1 | . . . . . . 1 1 . . . Shots Hit Robots 495 | . 24 39 66 71 75 95 72 3 . 50 Core Hits 285 | . 12 16 24 51 50 51 45 3 . 33 Critical Hits 7 | . . . 2 2 . . 1 . . 2 Critical Kills 3 | . . . . . . . 1 . . 2 Critical Parts Destroyed 3 | . . . 1 2 . . . . . . Melee Attacks . | . . . . . . . . . . . Impact . | . . . . . . . . . . . Slashing . | . . . . . . . . . . . Piercing . | . . . . . . . . . . . Sneak Attacks . | . . . . . . . . . . . Combat Hostiles . | . . . . . . . . . . . Follow-up Attacks . | . . . . . . . . . . . Damage Inflicted 9566 | . 408 742 1339 1257 1537 1635 1551 83 . 1014 Guns 5462 | . 176 . . 448 880 1599 1502 48 . 809 Cannons 4095 | . 232 742 1339 809 657 36 49 35 . 196 Explosions . | . . . . . . . . . . . Melee . | . . . . . . . . . . . Ramming 9 | . . . . . . . . . . 9 Kinetic 9390 | . 307 742 1339 1257 1537 1569 1551 83 . 1005 Thermal 66 | . . . . . . 66 . . . . Explosive . | . . . . . . . . . . . Electromagnetic 101 | . 101 . . . . . . . . . Impact . | . . . . . . . . . . . Slashing . | . . . . . . . . . . . Piercing . | . . . . . . . . . . . Highest Corruption 5 | . . . . . . . . . . 5 Average Corruption 4 | . . . . . . . . . . 4 Corruption Purged . | . . . . . . . . . . . Effects 2 | . . . . . . . . . . 2 Heat Flow Errors 1 | . . . . . . . . . . 1 Energy Discharges 1 | . . . . . . . . . . 1 Overload Shots . | . . . . . . . . . . . Overflow Damage 30 | . . . 30 . . . . . . . Projectiles 30 | . . . 30 . . . . . . . Explosions . | . . . . . . . . . . . Melee . | . . . . . . . . . . . Knockbacks 70 | . 5 9 13 20 17 2 1 1 . 2 Impact . | . . . . . . . . . . . Kinetic 67 | . 4 8 12 20 17 2 1 1 . 2 Secondary 3 | . 1 1 1 . . . . . . . Self-Inflicted Damage . | . . . . . . . . . . . Shots . | . . . . . . . . . . . Rammed 3 | . . . . . . . . . . 3 Targets Rammed 3 | . . . . . . . . . . 3 Kicked . | . . . . . . . . . . . Crushed . | . . . . . . . . . . . Highest Temperature 466 | . 90 206 466 277 164 34 . . . 246 Average Temperature 85 | . 31 81 120 94 54 21 . . . 60 Received Heat Transfer 2304 | . 60 114 360 252 174 255 489 . . 600 Effects 11 | . . . 7 4 . . . . . . Shutdowns 2 | . . . 2 . . . . . . . Energy Bleed 1 | . . . 1 . . . . . . . Interference 6 | . . . 2 4 . . . . . . Damage (minor) 1 | . . . 1 . . . . . . . Damage (major) 1 | . . . 1 . . . . . . . Siege Activations . | . . . . . . . . . . . Robots Corrupted . | . . . . . . . . . . . Combat Hostiles . | . . . . . . . . . . . Parts Fried . | . . . . . . . . . . . Impact Corruptions . | . . . . . . . . . . . Robots Melted . | . . . . . . . . . . . Combat Hostiles . | . . . . . . . . . . . Parts Melted . | . . . . . . . . . . . Heat Transferred 148 | . . . . . . 148 . . . . Parts Sabotaged . | . . . . . . . . . . . Parts Stolen . | . . . . . . . . . . . Parts Stripped . | . . . . . . . . . . . Power Chain Reactions . | . . . . . . . . . . . Missiles Intercepted . | . . . . . . . . . . . Alert | -11 -10 -9 -8 -8 -7 -6 -6 -6 -6 -5 ------- Run | Scr Mat Mat Mat Sto Fac Fac Low Low Dat Pro Peak Influence 593 | . 215 329 310 593 349 185 . . . . Average Influence 149 | . 89 170 186 324 170 73 . . . . Maximum Alert Level 2 | . 1 1 1 2 1 . . . . . Low Security (%) 76 | 100 81 76 61 25 74 100 . . . . Level 1 21 | . 18 23 38 53 25 . . . . . Level 2 2 | . . . . 20 . . . . . . Level 3 . | . . . . . . . . . . . Level 4 . | . . . . . . . . . . . Level 5 . | . . . . . . . . . . . High Security . | . . . . . . . . . . . Max Security . | . . . . . . . . . . . Squads Dispatched 14 | . 2 . . 2 5 5 . . . . Investigation 2 | . 1 . . 1 . . . . . . Extermination 6 | . . . . . 2 4 . . . . Reinforcement 3 | . 1 . . 1 1 . . . . . Assault . | . . . . . . . . . . . Garrison 3 | . . . . . 2 1 . . . . Intercept . | . . . . . . . . . . . Construction Impeded . | . . . . . . . . . . . Haulers Reinforced . | . . . . . . . . . . . Stealth | -11 -10 -9 -8 -8 -7 -6 -6 -6 -6 -5 --------- Run | Scr Mat Mat Mat Sto Fac Fac Low Low Dat Pro Distress Signals 11 | . 2 1 . 2 3 3 . . . . Communications Jammed . | . . . . . . . . . . . Distress Signals . | . . . . . . . . . . . Times Spotted 134 | . 16 12 17 21 15 20 10 1 . 22 Peak Tracking Total 9 | . 6 3 5 7 3 5 4 1 . 9 Tactical Retreats 7 | . . . 5 . . 1 . . . 1 Traps | -11 -10 -9 -8 -8 -7 -6 -6 -6 -6 -5 ------- Run | Scr Mat Mat Mat Sto Fac Fac Low Low Dat Pro Traps Triggered 10 | . 1 . 4 1 1 3 . . . . Indirectly . | . . . . . . . . . . . Trap Hack Attempts . | . . . . . . . . . . . Triggered . | . . . . . . . . . . . Disarmed . | . . . . . . . . . . . Reprogrammed . | . . . . . . . . . . . Reused . | . . . . . . . . . . . Traps Extracted . | . . . . . . . . . . . Installed . | . . . . . . . . . . . Triggered 5 | . . . . . . . . 5 . . Machines | -11 -10 -9 -8 -8 -7 -6 -6 -6 -6 -5 ---------- Run | Scr Mat Mat Mat Sto Fac Fac Low Low Dat Pro Machines Disabled 4 | . . 2 . 1 1 . . . . . Max in Single Turn 1 | . . 1 . 1 1 . . . . . Garrison Access 1 | . . . . 1 . . . . . . Machines Sabotaged . | . . . . . . . . . . . Garrisons Compromised . | . . . . . . . . . . . Overloaded Fab Kills . | . . . . . . . . . . . Fab Network Shutdowns . | . . . . . . . . . . . Hacking | -11 -10 -9 -8 -8 -7 -6 -6 -6 -6 -5 --------- Run | Scr Mat Mat Mat Sto Fac Fac Low Low Dat Pro Machines Accessed 8 | . . . . 2 1 . 1 . 4 . Terminals 2 | . . . . 1 1 . . . . . Fabricators . | . . . . . . . . . . . Repair Stations . | . . . . . . . . . . . Recycling Units . | . . . . . . . . . . . Scanalyzers . | . . . . . . . . . . . Garrison Access 1 | . . . . 1 . . . . . . Total Hacks 33 | . . . . 2 2 . 1 . 28 . Successful 31 | . . . . 2 . . 1 . 28 . Failed 2 | . . . . . 2 . . . . . Catastrophic . | . . . . . . . . . . . Database Lockouts . | . . . . . . . . . . . Manual 2 | . . . . . 2 . . . . . Terminals 3 | . . . . 1 2 . . . . . Fabricators . | . . . . . . . . . . . Repair Stations . | . . . . . . . . . . . Recycling Units . | . . . . . . . . . . . Scanalyzers . | . . . . . . . . . . . Garrison Access 1 | . . . . 1 . . . . . . Terminal Hacks 30 | . . . . 1 . . 1 . 28 . Record 11 | . . . . . . . . . 11 . Part Schematic 8 | . . . . . . . . . 8 . Robot Schematic 6 | . . . . . . . . . 6 . Prototype ID Bank 3 | . . . . . . . . . 3 . Open Door 2 | . . . . 1 . . 1 . . . Fabricator Hacks . | . . . . . . . . . . . Repair Station Hacks . | . . . . . . . . . . . Recycling Unit Hacks . | . . . . . . . . . . . Scanalyzer . | . . . . . . . . . . . Garrison Access Hacks 1 | . . . . 1 . . . . . . Seal Access 1 | . . . . 1 . . . . . . Unauthorized Hacks . | . . . . . . . . . . . Terminals . | . . . . . . . . . . . Fabricators . | . . . . . . . . . . . Repair Stations . | . . . . . . . . . . . Recycling Units . | . . . . . . . . . . . Scanalyzers . | . . . . . . . . . . . Garrison Access . | . . . . . . . . . . . Data Cores Recovered . | . . . . . . . . . . . Used . | . . . . . . . . . . . Hacking Detections 2 | . . . . 1 1 . . . . . Full Trace Events . | . . . . . . . . . . . Feedback Events . | . . . . . . . . . . . Feedback Blocked . | . . . . . . . . . . . Robot Schematics Acquired 6 | . . . . . . . . . 6 . Robots Built . | . . . . . . . . . . . Matter . | . . . . . . . . . . . Time . | . . . . . . . . . . . Total Robot Build Rating . | . . . . . . . . . . . Part Schematics Acquired 8 | . . . . . . . . . 8 . Parts Built . | . . . . . . . . . . . Matter . | . . . . . . . . . . . Time . | . . . . . . . . . . . Total Part Build Rating . | . . . . . . . . . . . Parts Repaired . | . . . . . . . . . . . Time . | . . . . . . . . . . . Parts Recycled . | . . . . . . . . . . . Recycled Matter . | . . . . . . . . . . . Retrieved Matter . | . . . . . . . . . . . Retrieved Components . | . . . . . . . . . . . Parts Scanalyzed . | . . . . . . . . . . . Part Schematics Acquired . | . . . . . . . . . . . Parts Damaged . | . . . . . . . . . . . Bothacking | -11 -10 -9 -8 -8 -7 -6 -6 -6 -6 -5 ------------ Run | Scr Mat Mat Mat Sto Fac Fac Low Low Dat Pro Used RIF Installer . | . . . . . . . . . . . Robots Hacked . | . . . . . . . . . . . Non-combat . | . . . . . . . . . . . Combat . | . . . . . . . . . . . Robot Hacks Applied . | . . . . . . . . . . . Relay Couplers Released . | . . . . . . . . . . . Robots Rewired . | . . . . . . . . . . . Allies Hacked . | . . . . . . . . . . . Hacks Repelled . | . . . . . . . . . . . Allies | -11 -10 -9 -8 -8 -7 -6 -6 -6 -6 -5 -------- Run | Scr Mat Mat Mat Sto Fac Fac Low Low Dat Pro Total Allies 1 | . . . . . . . . . . 1 Largest Group 1 | . . . . . . . . . . 1 Highest-Rated Group 94 | . . . . . . . . . . 94 Highest-Rated Ally 94 | . . . . . . . . . . 94 Total Orders . | . . . . . . . . . . . Ally Attacks 8 | . . . . . . . . . . 8 Total Damage 228 | . . . . . . . . . . 228 Kills 1 | . . . . . . . . . . 1 Allies Corrupted . | . . . . . . . . . . . Allies Melted . | . . . . . . . . . . . Intel | -11 -10 -9 -8 -8 -7 -6 -6 -6 -6 -5 ------- Run | Scr Mat Mat Mat Sto Fac Fac Low Low Dat Pro Robot Analysis Total . | . . . . . . . . . . . Derelict Logs Recovered 4 | . . . . . . . 2 . . 2 Drone Launches . | . . . . . . . . . . . Drone Recoveries . | . . . . . . . . . . . Exploration | -11 -10 -9 -8 -8 -7 -6 -6 -6 -6 -5 ------------- Run | Scr Mat Mat Mat Sto Fac Fac Low Low Dat Pro Turns Passed 9283 | 74 658 602 625 586 1278 1509 2160 449 155 1187 Spaces Moved 4189 | 41 330 288 191 248 634 615 989 224 91 538 Core 65 | 2 . . . . . . . . . 63 Treads 4124 | 39 330 288 191 248 634 615 989 224 91 475 Legs . | . . . . . . . . . . . Wheels . | . . . . . . . . . . . Hover . | . . . . . . . . . . . Flight . | . . . . . . . . . . . Fastest Speed 50 | 50 160 160 190 165 165 172 172 172 172 50 Average Speed 169 | 154 160 162 190 176 167 172 172 172 172 162 Slowest Speed 210 | 160 160 190 210 210 172 200 172 172 172 210 Overloaded Moves . | . . . . . . . . . . . Propulsion Burnouts . | . . . . . . . . . . . Robots Hopped . | . . . . . . . . . . . Cave-ins Triggered 1 | . . . . . . . . . . 1 Exploration Rate (%) 38 | 4 47 35 14 45 16 17 75 38 68 67 Regions Visited 10 Branch Regions 5 Pre-discovered Areas 3 | . . . . . . . 1 . 1 1 Known Exits Taken 4 | . . . . . . 1 1 1 1 . Unknown Exits Taken 6 | 1 1 1 1 1 1 . . . . . Scrap Searched 7 | . . . . . . . 4 1 . 2 Spaces Dug 34 | . . . . . . . 30 . . 4 Terrain Destroyed 55 | . 1 4 2 2 . 1 33 . . 12 Melee . | . . . . . . . . . . . Projectile 55 | . 1 4 2 2 . 1 33 . . 12 AOE . | . . . . . . . . . . . Actions | -11 -10 -9 -8 -8 -7 -6 -6 -6 -6 -5 --------- Run | Scr Mat Mat Mat Sto Fac Fac Low Low Dat Pro Total 5878 | 49 422 382 382 339 800 984 1356 286 90 788 Wait 1169 | . 55 38 131 44 115 256 293 62 . 175 Move 4179 | 40 329 287 190 247 633 614 988 223 90 538 Hop . | . . . . . . . . . . . Pick Up 61 | 3 7 19 8 2 6 5 6 . . 5 Fast Attach 42 | 6 3 . 9 2 4 15 . . . 3 Attach 23 | . . 2 2 5 . 2 5 . . 7 Detach 1 | . . . . . . 1 . . . . Swap 39 | . 2 6 3 1 4 20 2 . . 1 Drop 69 | . 6 11 7 4 7 17 1 . . 16 Fire 292 | . 20 19 32 34 31 54 61 1 . 40 Melee . | . . . . . . . . . . . Ram . | . . . . . . . . . . . Kick . | . . . . . . . . . . . Crush 3 | . . . . . . . . . . 3 Escape Stasis . | . . . . . . . . . . . Rewire . | . . . . . . . . . . . Trap . | . . . . . . . . . . . Miscellaneous . | . . . . . . . . . . . Route ------- -11/Scrapyard -10/Materials (discovered 2 exits: *Mat / [*Min]) -9/Materials -8/Materials -8/Storage -7/Factory -6/Factory -6/Lower Caves -6/Lower Caves -6/Data Miner -5/Proximity Caves History --------- Turn | Location | Event 12 | -11/Scrapyard | Discovered new exit (range 14) 75 | -11/Scrapyard | Entered Materials 304 | -10/Materials | Build established: Mutant 337 | -10/Materials | Discovered new exit (range 8) 483 | -10/Materials | Discovered new exit (range 10) 733 | -10/Materials | Entered another Materials area 733 | -9/Materials | Evolved 2 slots: Utility x1, Weapon x1 1026 | -9/Materials | Build established: Gunner 1323 | -9/Materials | Discovered new exit (range 5) 1335 | -9/Materials | Entered another Materials area 1335 | -8/Materials | Evolved 2 slots: Utility x2 1928 | -8/Materials | Discovered new exit (range 10) 1960 | -8/Materials | Entered Storage 2531 | -8/Storage | Discovered new exit (range 9) 2546 | -8/Storage | Entered Factory 2546 | -7/Factory | Evolved 2 slots: Utility x2 3642 | -7/Factory | Garrison activated, responded to threat 3787 | -7/Factory | Discovered new exit (range 12) 3824 | -7/Factory | Entered another Factory area 3824 | -6/Factory | Evolved 2 slots: Utility x2 4198 | -6/Factory | Garrison activated, responded to threat 4251 | -6/Factory | Lost 3 parts (1p2w) 4700 | -6/Factory | Build established: Scavenger-Skirmisher 5209 | -6/Factory | Discovered new exit (range 14) 5239 | -6/Factory | Identified exit to Lower Caves 5333 | -6/Factory | Entered Lower Caves 5491 | -6/Lower Caves | Ambushed by wild Derelicts 5629 | -6/Lower Caves | Build established: Skirmisher 7027 | -6/Lower Caves | Discovered new exit (range 14) 7374 | -6/Lower Caves | Identified exit to Lower Caves 7407 | -6/Lower Caves | Learned Factory interactive machine intel 7464 | -6/Lower Caves | Build established: Mutant 7493 | -6/Lower Caves | Entered another Lower Caves area 7787 | -6/Lower Caves | Build established: Skirmisher 7915 | -6/Lower Caves | Discovered new exit (range 15) 7941 | -6/Lower Caves | Identified exit to Data Miner 7942 | -6/Lower Caves | Entered Data Miner 7942 | -6/Data Miner | Discovered new exit (range 6) 7973 | -6/Data Miner | Identified exit to Proximity Caves 7998 | -6/Data Miner | Met Data Miner 8034 | -6/Data Miner | Learned location of Section 7 (-2) 8034 | -6/Data Miner | Acquired the access code to Warlord's prototype stash 8061 | -6/Data Miner | Received God Mode back door access code from Data Miner 8097 | -6/Data Miner | Entered Proximity Caves 8705 | -5/Proximity Caves | Escorted by Enhanced Grunt 8780 | -5/Proximity Caves | Learned Factory emergency access door positions 9176 | -5/Proximity Caves | Core integrity fell below 50% 9233 | -5/Proximity Caves | Crushed by falling debris 9281 | -5/Proximity Caves | Core integrity fell below 20% 9283 | -5/Proximity Caves | Lost 17 parts (2p1n8u6w) 9284 | -5/Proximity Caves | Destroyed by P-70 Sage with Tesla Rifle Last Messages --------------- 09235_ Acquired 25 matter. 09236_ C-30 ARC bursts open, deploying its payload. 09236_ P-70 Sage unfolds itself. 09236_ Lgt. Nuclear Core destroyed. 09236_ Slammed into S-27 Virus. 09238_ System corrupted: Heat flow error (+288). 09238_ Slammed into G-50 Soldier. 09239_ Adv. Targeting Computer destroyed. 09247_ Lyr. Medium Armor Plating destroyed. 09247_ Imp. Cooling System destroyed. 09248_ Dropped Com. Matter Pod. 09249_ Extracted 109 matter. 09249_ Dropped Com. Matter Pod. 09249_ Dropped Adv. Heat Sink. 09250_ Dropped Med. Treads. 09251_ Dropped Arm. Treads. 09251_ Dropped Lrg. Storage Unit. 09252_ Adv. Heat Sink destroyed. 09252_ Dropped Arm. Treads. 09265_ System corrupted: Energy discharge (-20). Map ----- +----------------------------------------------------+ | # ?#???#?????????#????????????????????????? | | ?#?????????????????????????????????????? | | #?## ????????????????????????????????????????? | | #????????????????????????????????????????????? | | #??#???#?????????????????????????????????????? | | #??#????????????????????????????????????????? | | ???????????????????????????????????????????? | | ???#??????????????????????????????????????? | | ??????????????????????????????????????????? | | ##???#???????????##???????????????????????????? | | ##??????????????## ?? ????????????????????????? | | ??#?????????????# ??? ????#???????????????????? | | ??#?????????????? ??? ???? ##?????????????????? | | ????????????????? ???? ???? #?????????????????? | | ??????######????# ???? ??? #?????????????????? | | ???#?## ##### ????? ??? #???#?????????????? | | ?????? ? ????? ??? ### ?????????????? | | ?#?????# ??# #????? ### ??????????????? | | ???#????# #??# #????? ????????????????? | | #??????## ##?# #????? ?????????????????? | | #???#### ### #?????# #??????????????????? | | #?????# #??????# ##?????????????????? | | ?#????# ## ####???# #?????????????????? | | ?####### ## s #####s ##????????????????? | | ## #?## ## p ##???????????????? | | # ##?# ### ## @ #???????????????? | | ### ###### s ## #???????????? | | #????## s #????? #???????????? | | ##?????# s##????????? #???????????? | | ##??????# #???????????????????????? | | ##???????# ##???????????????????????? | | ##????????### ##????????????????????????? | | #???????????## ##????????????????????????? | | ### #?#?????????## ###??????????????????????? | | #?## #???????????# #??????????????????????? | | #??####??????????# #?????????????????????? | | ###???????????? ##?????????????????????? | | #?????????? ####??????????????????????? | | ???????? ##?????????????????????????? | | ????????? ## ???????????????????????????? | | ###??????? ??## ???????????????????????????? | | ??????????? ????## #???????????????????????????? | | ???????????#??????###????????????????????????????? | | ?????????????????????????????????????????????????? | | ?????????????????????????????????????????????????? | | ?????????????????????????????????????????????????? | | ?????????????????????????????????????????????????? | | ?????????????????????????????????????????????????? | | ?????????????????????????????????????????????????? | | ?????????????????????????????????????????????????? | +----------------------------------------------------+ Best States ------------- Heat Dissipation 102 Energy Generation 18 Energy Capacity 290 Matter Stores 300 Matter Capacity 300 Sight Range 16 Robot Scan Range 20 Terrain Scan Range 20 Terrain Scan Density 10 Armor Coverage 675 Evasion (%) 50 Targeting Accuracy 16 Recoil Reduction 2 Item Schematics ----------------- Combat Drone Bay | -6/Data Miner | Free Lgt. Regenerative Plating | -6/Data Miner | Free Exp. Cesium-ion Thruster | -6/Data Miner | Free Exp. Terrain Scan Processor | -6/Data Miner | Free Exp. Targeting Computer | -6/Data Miner | Free Tactical Coordination Suite | -6/Data Miner | Free Plasma Sword | -6/Data Miner | Free Kinetic Spear | -6/Data Miner | Free Robot Schematics ------------------ S-27 Virus | -6/Data Miner | Free L-41 Fighter | -6/Data Miner | Free P-70 Sage | -6/Data Miner | Free G-50 Soldier | -6/Data Miner | Free X-72 Disruptor | -6/Data Miner | Free I-36 Angel | -6/Data Miner | Free Fabricated ------------ Nothing Alien Tech Used ----------------- None Achievements -------------- None Challenges ------------ None Game ------ Seed ChipForceMicroactuators Manual? 0 Play Time 00:47:59 Cumulative 128.2 hours Start 2020.08.11 @ 17:23:05 End 2020.08.13 @ 18:53:40 Sessions 3 Manual Loads 0 Difficulty Rogue Special Mode None Game No. 181 Rogue 138 Adventurer 3 Explorer 40 Win Type - Total 2 Types 1/1/0/0/0/0/0 Lore% 50 Gallery% 72 Achievement% 51 Wizard Run 0 Options --------- ASCII 0 Keyboard 0 Movement Mouse Keybinds 0 Fullscreen 2 Font 18/SmallcapsGlow Map View 76x50 Tactical HUD 1 Map Filters NONE Filters NONE Steam 1 RUN: c11bb9b4-af73-4713-8962-c8372070f882